bitfinex-derivatives/quotes_SOLF0:USTF0_20251201
["timestamp","ask_amount","ask_price","bid_price","bid_amount"]
[1764632276748,3.35941947,127.09,127.06,0.05459129]
[1764632277044,3.3,127.08,127.06,0.05459129]
[1764632277243,4.51914266,127.07,127.06,3.20459129]
[1764632277547,3.35941947,127.09,127.06,3.20459129]
[1764632277748,4.5190188,127.08,127.06,3.20459129]
[1764632278052,3.35941947,127.09,127.06,3.20459129]
[1764632278349,4.51901282,127.08,127.06,3.20459129]
[1764632278550,3.35941947,127.09,127.06,3.20459129]
[1764632278853,4.51786037,127.08,127.06,3.20459129]
[1764632279152,3.35941947,127.09,127.06,3.20459129]
[1764632279344,4.51699112,127.08,127.06,3.20459129]
[1764632279544,3.35941947,127.09,127.06,3.20459129]
[1764632279740,7.81699112,127.08,127.06,0.05459129]
[1764632279945,3.3,127.08,127.06,0.05459129]
[1764632280953,7.81524418,127.07,127.06,0.05459129]
[1764632284554,3.3,127.06,127.03,7.0843]
[1764632284754,3.3,127.04,127.03,7.0843]
[1764632285054,7.81524418,127.04,127.03,7.0843]
[1764632285250,7.81524418,127.04,127.01,10.2355]
[1764632285451,3.3,127.04,127.01,10.29035488]
[1764632285655,3.35338218,127.04,127.01,10.29035488]
[1764632285852,3.35338218,127.04,127.02,3.15]
[1764632289961,3.35338218,127.04,127.01,7.14035488]
[1764632290351,3.35338218,127.04,127.01,0.05485488]
[1764632290548,7.90303756,127.03,127.01,0.05485488]
[1764632290752,3.39,127.03,127.01,0.05485488]
[1764632291561,7.90261165,127.02,127.01,0.05485488]
[1764632291761,3.39,127.01,126.96,3.28]
[1764632292061,7.90151094,127.0,126.96,3.28]
[1764632292262,3.39,127.0,126.97,3.28]
[1764632292445,3.39,127.0,126.94,3.28]
[1764632292647,3.39,126.98,126.94,3.28]
[1764632292857,3.4447644,126.98,126.96,3.33868294]
[1764632294059,3.4447644,126.98,126.96,0.05868294]
[1764632300368,0.0547644,126.98,126.96,3.33868294]
[1764632300570,3.4447644,126.98,126.96,0.05868294]
[1764632303266,0.0547644,126.98,126.96,10.42718294]
[1764632303570,3.4447644,126.98,126.96,10.42718294]
[1764632304078,3.4447644,126.98,126.96,7.14718294]
[1764632304769,3.4447644,126.98,126.96,0.05868294]
[1764632305169,3.4447644,126.98,126.96,3.33868294]
[1764632305667,0.0547644,126.98,126.96,3.33868294]
[1764632307171,0.0547644,126.98,126.96,10.42718294]
[1764632307974,0.0547644,126.98,126.97,3.28]
[1764632308273,0.0547644,126.98,126.96,7.14718294]
[1764632308274,0.0547644,126.98,126.96,10.42718294]
[1764632309471,0.0547644,126.98,126.97,3.28]
[1764632318584,3.09,127.03,126.99,3.09]
[1764632319582,3.1403482,127.02,127.0,0.05091652]
[1764632324588,0.0503482,127.02,127.0,3.14091652]
[1764632325892,3.1403482,127.02,127.0,3.14091652]
[1764632326394,3.1403482,127.02,127.0,10.22681652]
[1764632326801,3.1403482,127.02,127.0,7.13681652]
[1764632329597,3.1403482,127.02,127.0,0.05091652]
[1764632334808,0.0503482,127.02,127.0,10.22711652]
[1764632335209,3.1403482,127.02,127.0,10.22711652]
[1764632335409,3.1403482,127.02,127.0,3.14091652]
[1764632339106,3.1403482,127.02,127.0,0.05091652]
[1764632339804,9.01920393,127.01,127.0,0.05091652]
[1764632340305,13.52973753,127.01,127.0,0.05091652]
[1764632340706,3.09,127.0,126.97,7.0876]
[1764632340910,3.09,126.98,126.97,7.0876]
[1764632341107,2.09446587,127.02,126.97,10.1776]
[1764632341311,3.09,127.0,126.97,10.1776]
[1764632341510,3.09,126.98,126.97,7.0876]
[1764632341712,0.05991589,126.99,126.97,10.1776]
[1764632342216,3.14991589,126.99,126.97,10.1776]
[1764632344813,3.14991589,126.99,126.96,0.05925843]
[1764632345117,7.60204244,126.98,126.96,3.14925843]
[1764632345316,3.09,126.98,126.96,3.14925843]
[1764632346705,7.60178681,126.97,126.96,0.05925843]
[1764632350618,4.51178681,126.97,126.96,3.22925843]
[1764632351214,3.45991589,126.99,126.96,3.22925843]
[1764632351416,4.5097091,126.98,126.96,3.22925843]
[1764632351620,3.45991589,126.99,126.96,3.22925843]
[1764632351820,7.90968684,126.98,126.96,3.22925843]
[1764632352022,3.4,126.98,126.96,3.22925843]
[1764632352318,0.05991589,126.99,126.96,3.22925843]
[1764632353415,0.05991589,126.99,126.97,10.2579]
[1764632355917,0.05991589,126.99,126.98,3.17]
[1764632356421,3.4,127.03,127.0,3.17]
[1764632356613,3.4,127.05,127.0,3.17]
[1764632356812,187.32433733,127.09,127.01,3.17]
[1764632356813,4.51190076,127.04,127.01,3.17]
[1764632357015,3.4,127.08,127.01,3.17]
[1764632357217,3.45042812,127.06,127.03,3.22310015]
[1764632357827,3.4,127.12,127.05,113.3569]
[1764632358117,4.51343923,127.11,127.07,3.17]
[1764632358317,3.4,127.15,127.1,3.17]
[1764632358523,4.50873243,127.14,127.1,3.17]
[1764632358816,0.05587112,127.13,127.11,3.22878971]
[1764632359013,3.45587112,127.13,127.11,0.05878971]
[1764632371528,5.38446587,127.12,127.11,0.05878971]
[1764632372327,3.29,127.12,127.11,0.05878971]
[1764632393243,3.30587112,127.13,127.11,10.20858971]
[1764632393933,3.30587112,127.13,127.11,7.13858971]
[1764632394235,3.30587112,127.13,127.11,0.05878971]
[1764632398436,7.60800488,127.12,127.11,0.05878971]
[1764632399633,3.25,127.12,127.11,0.05878971]
[1764632399833,13.46355926,127.12,127.11,0.05878971]
[1764632400344,13.473917,127.12,127.11,0.05878971]
[1764632401641,3.25,127.11,127.04,3.07]
[1764632401838,3.25,127.09,127.06,7.0828]
[1764632402143,13.49243847,127.08,127.06,10.1528]
[1764632402342,4.3630949,127.07,127.06,10.1528]
[1764632402738,3.25,127.1,127.08,10.1516]
[1764632402950,5.88063072,127.09,127.08,10.1516]
[1764632404050,0.05818263,127.1,127.08,10.1516]
[1764632404247,3.30818263,127.1,127.08,10.1516]
[1764632405358,0.05818263,127.1,127.08,10.1516]
[1764632406839,0.05818263,127.1,127.09,3.07]
[1764632408454,3.44818263,127.1,127.08,10.4316]
[1764632408652,0.05818263,127.1,127.09,3.35]
[1764632410554,3.44818263,127.1,127.07,3.40106668]
[1764632411256,3.44818263,127.1,127.07,10.48336668]
[1764632414057,3.44818263,127.1,127.08,3.35]
[1764632414253,3.44818263,127.1,127.07,7.13336668]
[1764632414444,3.44818263,127.1,127.07,0.05106668]
[1764632414649,3.44818263,127.1,127.07,3.40106668]
[1764632414853,7.73689581,127.09,127.07,3.40106668]
[1764632415156,3.39,127.09,127.07,3.40106668]
[1764632415755,3.39,127.09,127.07,10.48336668]
[1764632416058,0.05818263,127.1,127.08,3.35]
[1764632417459,0.05818263,127.1,127.08,10.4318]
[1764632417654,0.05818263,127.1,127.09,3.35]
[1764632418046,3.44818263,127.1,127.08,10.4318]
[1764632420259,0.05818263,127.1,127.09,3.35]
[1764632420650,3.39,127.14,127.11,3.35]
[1764632420850,13.61810003,127.13,127.11,3.35]
[1764632421054,3.39,127.13,127.11,3.35]
[1764632421358,3.39,127.11,127.1,7.0803]
[1764632424861,3.4495995,127.12,127.1,10.4303]
[1764632426763,0.0595995,127.12,127.11,3.35]
[1764632426964,4.44961538,127.12,127.11,3.35]
[1764632427563,4.44943536,127.12,127.11,3.35]
[1764632428165,7.83943536,127.12,127.1,10.4303]
[1764632428464,3.4495995,127.12,127.1,10.4303]
[1764632428966,0.0595995,127.12,127.11,3.35]
[1764632429166,4.44924774,127.12,127.11,3.35]
[1764632429361,0.0595995,127.12,127.11,3.35]
[1764632430167,4.44877905,127.12,127.11,3.35]
[1764632430968,0.0595995,127.12,127.11,3.35]
[1764632435266,3.3,127.11,127.1,7.0803]
[1764632436360,7.68741287,127.11,127.1,7.0803]
[1764632437161,0.0595995,127.12,127.1,10.4303]
[1764632437366,3.3595995,127.12,127.1,10.4303]
[1764632437768,3.3595995,127.12,127.09,3.4090687]
[1764632437963,4.38735938,127.11,127.09,3.4090687]
[1764632438158,3.3595995,127.12,127.09,3.4090687]
[1764632438358,3.38,127.1,127.09,0.0590687]
[1764632441972,13.64990981,127.1,127.09,0.0590687]
[1764632442776,3.38,127.09,127.04,10.3236]
[1764632443068,3.38,127.07,127.04,3.24]
[1764632443371,3.38,127.07,127.03,3.24]
[1764632443767,3.38,127.05,127.04,0.05332285]
[1764632444873,9.85173929,127.05,127.04,0.05332285]
[1764632445064,3.38,127.04,126.99,3.24]
[1764632446065,3.38,127.02,127.0,3.29451368]
[1764632446473,3.38,127.02,127.0,0.05451368]
[1764632451965,5.47308108,127.01,127.0,0.05451368]
[1764632461871,7.14126026,127.03,127.0,3.29451368]
[1764632461872,3.38,127.02,127.0,3.29451368]
[1764632462281,3.38,127.02,127.0,0.05451368]
[1764632464780,5.47308108,127.01,127.0,0.05451368]
[1764632465984,3.38,127.01,127.0,0.05451368]
[1764632466575,5.47308108,127.01,127.0,0.05451368]
[1764632470078,3.41,126.98,126.92,3.13]
[1764632470287,3.41,126.97,126.92,3.13]
[1764632471084,3.46951896,126.96,126.93,3.18109063]
[1764632471279,0.05951896,126.96,126.94,3.13]
[1764632471887,0.05951896,126.96,126.94,10.2197]
[1764632472082,3.41,127.01,126.96,3.13]
[1764632473087,0.05581113,127.0,126.97,3.18374733]
[1764632473476,0.05581113,127.0,126.99,3.13]
[1764632473988,3.46581113,127.0,126.97,3.18374733]
[1764632475679,0.05581113,127.0,126.97,3.18374733]
[1764632477486,0.05581113,127.0,126.98,3.13]
[1764632478489,0.05581113,127.0,126.98,10.2173]
[1764632478693,0.05581113,127.0,126.99,3.13]
[1764632487791,3.46581113,127.0,126.98,7.0873]
[1764632488487,3.41,126.98,126.97,0.05374733]
[1764632488691,7.79345115,126.98,126.97,0.05374733]
[1764632488890,13.68003253,126.98,126.97,0.05374733]
[1764632494898,13.67640104,126.98,126.97,0.05374733]
[1764632495097,7.78981966,126.98,126.97,0.05374733]
[1764632495802,4.37981966,126.98,126.97,3.21374733]
[1764632495997,3.21581113,127.0,126.97,3.21374733]
[1764632496299,0.05581113,127.0,126.97,3.21374733]
[1764632497396,0.05581113,127.0,126.99,3.16]
[1764632498203,0.05581113,127.0,126.98,3.16]
[1764632498903,3.44581113,127.0,126.97,0.05374733]
[1764632499106,3.44581113,127.0,126.97,3.34374733]
[1764632502006,3.44581113,127.0,126.97,0.05374733]
[1764632505003,3.39,126.98,126.97,0.05374733]
[1764632505716,7.77679045,126.98,126.97,0.05374733]
[1764632507308,4.38679045,126.98,126.97,3.34374733]
[1764632507505,7.77679045,126.98,126.97,0.05374733]
[1764632513517,3.39,126.96,126.89,3.29]
[1764632514217,3.39,126.96,126.91,3.29]
[1764632514413,3.39,126.96,126.89,110.3242]
[1764632514414,3.4443946,126.95,126.92,3.34336255]
[1764632515018,3.4443946,126.95,126.92,10.43406255]
[1764632515521,3.4443946,126.95,126.92,3.34336255]
[1764632520214,3.4443946,126.95,126.92,0.05336255]
[1764632520817,6.71913383,126.95,126.92,0.05336255]
[1764632521018,3.39,126.94,126.92,0.05336255]
[1764632524316,10.4799,126.94,126.92,0.05336255]
[1764632524512,3.39,126.93,126.92,0.05336255]
[1764632526629,3.39,126.91,126.87,7.0933]
[1764632526829,3.39,126.91,126.86,3.29]
[1764632527727,3.39,126.89,126.87,0.06036736]
[1764632530829,3.39,126.89,126.87,3.41036736]
[1764632531630,3.39,126.89,126.87,0.06036736]
[1764632535839,0.05438446,126.9,126.87,3.41036736]
[1764632537340,0.05438446,126.9,126.87,10.50356736]
[1764632537639,0.05438446,126.9,126.88,3.35]
[1764632543846,0.05438446,126.9,126.89,3.35]
[1764632545649,0.05438446,126.9,126.88,7.0925]
[1764632545650,3.14438446,126.9,126.88,7.0925]
[1764632545850,3.14438446,126.9,126.88,10.4425]
[1764632546450,3.14438446,126.9,126.87,0.06036736]
[1764632546853,3.14438446,126.9,126.87,3.41036736]
[1764632549854,3.14438446,126.9,126.87,0.06036736]
[1764632550653,3.23,126.89,126.87,0.06036736]
[1764632551253,10.3227,126.89,126.87,0.06036736]
[1764632551556,3.23,126.88,126.87,0.06036736]
[1764632553354,6.50473923,126.88,126.82,3.15]
[1764632553554,3.23,126.87,126.82,3.15]
[1764632553853,3.23,126.86,126.82,3.15]
[1764632554347,0.05198993,126.85,126.83,0.05144311]
[1764632554544,3.28198993,126.85,126.83,0.05144311]
[1764632559159,0.05198993,126.85,126.83,3.17144311]
[1764632560060,3.20198993,126.85,126.83,3.17144311]
[1764632560463,3.20198993,126.85,126.83,10.26704311]
[1764632562061,3.20198993,126.85,126.83,7.14704311]
[1764632563968,3.20198993,126.85,126.83,10.26704311]
[1764632565366,0.05198993,126.85,126.84,3.12]
[1764632565668,70.55,126.91,126.85,3.12]
[1764632566362,3.15,126.9,126.87,3.12]
[1764632566564,3.20717683,126.9,126.87,3.17196626]
[1764632568571,3.20717683,126.9,126.87,0.05196626]
[1764632571470,5.30523777,126.9,126.87,0.05196626]
[1764632571667,7.55499888,126.89,126.87,0.05196626]
[1764632571866,3.15,126.89,126.87,0.05196626]
[1764632576771,7.5542046,126.88,126.87,0.05196626]
[1764632577970,3.15,126.88,126.87,0.05196626]
[1764632588086,3.20717683,126.9,126.87,3.17196626]
[1764632590087,3.20717683,126.9,126.87,10.26546626]
[1764632592286,0.05717683,126.9,126.89,3.13]
[1764632596489,3.36717683,126.9,126.88,7.093]
[1764632596790,3.36717683,126.9,126.88,10.223]
[1764632598292,0.05717683,126.9,126.89,3.13]
[1764632610699,3.21,126.89,126.87,0.05196626]
[1764632610903,3.21,126.87,126.82,3.18]
[1764632611101,2.09806094,126.86,126.83,3.18]
[1764632611993,2.15036355,126.86,126.83,3.23378755]
[1764632616500,0.05230261,126.86,126.84,3.18]
[1764632617301,0.05230261,126.86,126.84,7.0952]
[1764632617501,0.05230261,126.86,126.85,3.18]
[1764632618098,3.21,126.91,126.87,3.18]
[1764632618305,5.30806094,126.91,126.87,3.18]
[1764632619004,5.30806094,126.91,126.88,3.2]
[1764632619209,0.0540203,126.91,126.88,3.25768641]
[1764632619400,0.0540203,126.91,126.88,10.35068641]
[1764632619611,0.0540203,126.91,126.89,3.2]
[1764632620210,3.27,126.9,126.88,3.25768641]
[1764632624004,3.3240203,126.91,126.88,3.25768641]
[1764632627717,4.41552977,126.9,126.88,3.25768641]
[1764632628011,3.3240203,126.91,126.88,3.25768641]
[1764632628312,4.41552977,126.9,126.88,3.25768641]
[1764632628515,3.27,126.89,126.88,0.05768641]
[1764632628816,7.68502375,126.89,126.88,0.05768641]
[1764632629218,7.6851328,126.89,126.88,0.05768641]
[1764632629414,13.66556963,126.89,126.88,0.05768641]
[1764632633012,10.42412421,126.91,126.88,3.25768641]
[1764632633319,13.66688944,126.9,126.88,3.25768641]
[1764632633519,3.27,126.9,126.88,3.25768641]
[1764632635423,3.27,126.9,126.88,10.35058641]
[1764632637522,3.27,126.9,126.88,0.05768641]
[1764632638025,7.75390967,126.89,126.88,0.05768641]
[1764632643129,3.27,126.9,126.88,3.25768641]
[1764632647025,3.3240203,126.91,126.88,3.25768641]
[1764632647220,7.75562359,126.9,126.88,3.25768641]
[1764632647421,3.27,126.9,126.88,3.25768641]
[1764632650330,3.27,126.9,126.88,10.35068641]
[1764632650532,3.2940203,126.91,126.89,3.16]
[1764632650727,7.72599891,126.9,126.88,10.31068641]
[1764632651033,3.24,126.9,126.88,10.31068641]
[1764632654230,3.24,126.9,126.88,7.15068641]
[1764632654435,4.48830723,126.89,126.88,0.05768641]
[1764632654638,7.72830723,126.89,126.88,0.05768641]
[1764632656826,13.76386824,126.89,126.88,0.05768641]
[1764632657027,7.72830723,126.89,126.88,0.05768641]
[1764632657334,13.76562841,126.89,126.88,0.05768641]
[1764632657936,13.76769946,126.89,126.88,0.05768641]
[1764632658930,3.24,126.88,126.83,3.16]
[1764632659131,3.24,126.86,126.83,3.16]
[1764632659834,3.2970008,126.86,126.83,3.21232683]
[1764632660038,0.0570008,126.86,126.85,3.16]
[1764632662233,7.30290224,126.92,126.87,3.16]
[1764632662433,13.76849232,126.91,126.87,3.16]
[1764632662635,10.52849232,126.9,126.87,3.16]
[1764632662932,4.49064977,126.89,126.87,3.16]
[1764632663135,3.24,126.91,126.87,3.16]
[1764632663333,4.55129787,126.9,126.88,3.2204275]
[1764632663532,0.05913815,126.9,126.88,3.2204275]
[1764632664436,0.05913815,126.9,126.89,3.16]
[1764632664937,3.29913815,126.9,126.88,7.1530275]
[1764632665133,3.29913815,126.9,126.88,10.3130275]
[1764632666637,0.05913815,126.9,126.89,3.16]
[1764632666839,4.55060917,126.9,126.89,3.16]
[1764632667040,0.05913815,126.9,126.89,3.16]
[1764632667237,4.55099044,126.9,126.89,3.16]
[1764632679958,7.70099044,126.9,126.88,10.4430275]
[1764632680253,3.20913815,126.9,126.89,3.29]
[1764632680454,4.55153099,126.9,126.89,3.29]
[1764632682361,7.70153099,126.9,126.89,3.29]
[1764632683866,2.32514578,126.9,126.89,3.29]
[1764632684061,3.15,126.94,126.9,3.29]
[1764632684362,9.20834083,126.93,126.9,3.29]
[1764632684563,3.15,126.93,126.9,3.29]
[1764632684765,3.15,126.93,126.9,10.3819]
[1764632684963,3.20005124,126.93,126.91,3.29]
[1764632685962,3.20005124,126.93,126.9,7.14489683]
[1764632687174,3.20005124,126.93,126.9,10.43489683]
[1764632690183,3.20005124,126.93,126.91,3.29]
[1764632690374,3.20005124,126.93,126.9,10.43489683]
[1764632691578,3.20005124,126.93,126.9,0.05299683]
[1764632692375,3.20005124,126.93,126.9,3.34299683]
[1764632694588,3.20005124,126.93,126.91,3.29]
[1764632695385,3.20005124,126.93,126.91,10.3813]
[1764632696184,3.20005124,126.93,126.92,3.29]
[1764632696385,7.65397741,126.93,126.92,3.29]
[1764632696587,4.50397741,126.93,126.92,3.29]
[1764632698788,7.65397741,126.93,126.92,3.29]
[1764632699279,3.20005124,126.93,126.92,3.29]
[1764632700787,3.15,126.92,126.91,7.0913]
[1764632701375,3.15,126.91,126.87,3.29]
[1764632701588,3.15,126.89,126.87,3.29]
[1764632702582,3.20607603,126.89,126.88,7.093]
[1764632704688,3.20607603,126.89,126.87,0.05281993]
[1764632705188,7.60467647,126.88,126.87,0.05281993]
[1764632705892,3.15,126.88,126.87,3.34281993]
[1764632706094,3.15,126.88,126.87,0.05281993]
[1764632707094,0.05607603,126.89,126.87,3.34281993]
[1764632708489,0.05607603,126.89,126.87,10.43631993]
[1764632708793,0.05607603,126.89,126.88,3.11]
[1764632719699,5.41350338,126.89,126.87,0.05281993]
[1764632719900,4.45492579,126.88,126.87,3.16281993]
[1764632720207,3.31607603,126.89,126.87,3.16281993]
[1764632720702,0.05607603,126.89,126.87,3.16281993]
[1764632730111,0.05607603,126.89,126.87,10.25621993]
[1764632730712,0.05607603,126.89,126.88,3.17]
[1764632741220,7.73821084,126.89,126.87,0.05281993]
[1764632741516,7.68160367,126.88,126.87,0.05281993]
[1764632741713,13.70627769,126.88,126.87,0.05281993]
[1764632741908,15.80370504,126.88,126.87,0.05281993]
[1764632742111,3.22,126.87,126.84,3.13]
[1764632743023,3.22,126.87,126.84,3.19010274]
[1764632745707,7.67877794,126.86,126.84,3.19010274]
[1764632746019,3.27109791,126.86,126.84,3.19010274]
[1764632746525,7.67799024,126.85,126.84,0.06010274]
[1764632746721,4.45799024,126.85,126.82,3.13]
[1764632747018,3.27109791,126.86,126.82,3.13]
[1764632747620,3.27109791,126.86,126.83,3.18072829]
[1764632753525,0.05109791,126.86,126.84,3.13]
[1764632756123,0.05109791,126.86,126.85,3.13]
[1764632760426,3.27109791,126.86,126.84,10.2252]
[1764632761128,3.27109791,126.86,126.84,7.0952]
[1764632761729,3.27109791,126.86,126.84,10.2252]
[1764632762333,0.05109791,126.86,126.85,3.13]
[1764632764831,0.05109791,126.86,126.84,7.0952]
[1764632764832,3.22,126.92,126.87,3.13]
[1764632765132,4.43619702,126.91,126.87,3.13]
[1764632765330,3.22,126.91,126.87,3.13]
[1764632765733,3.27434367,126.9,126.88,0.05120912]
[1764632766031,3.27434367,126.9,126.88,3.18120912]
[1764632770636,0.05434367,126.9,126.89,3.27]
[1764632787348,4.42150895,126.95,126.92,3.27]
[1764632787537,3.13,126.96,126.92,3.27]
[1764632787943,3.13,126.96,126.93,10.3601]
[1764632788341,3.17999424,126.96,126.93,10.42038861]
[1764632789150,3.17999424,126.96,126.94,3.27]
[1764632790247,3.17999424,126.96,126.94,10.3596]
[1764632790749,0.04999424,126.96,126.95,3.26]
[1764632791852,3.17999424,126.96,126.94,10.3496]
[1764632792652,3.17999424,126.96,126.93,3.32028861]
[1764632795644,3.13,126.94,126.89,3.26]
[1764632795850,3.13,126.92,126.85,110.3555]
[1764632796048,3.13,126.92,126.87,3.26]
[1764632796655,3.1824867,126.91,126.88,3.31770567]
[1764632797047,3.1824867,126.91,126.89,3.26]
[1764632797048,0.0524867,126.91,126.89,3.26]
[1764632797752,0.0524867,126.91,126.89,10.3523]
[1764632797955,3.1824867,126.91,126.88,3.31770567]
[1764632798460,3.1824867,126.91,126.88,0.05770567]
[1764632799550,3.3,126.89,126.88,0.05770567]
[1764632801155,7.7107833,126.89,126.88,0.05770567]
[1764632801556,13.68826594,126.89,126.88,0.05770567]
[1764632801759,3.3,126.88,126.84,3.34]
[1764632802746,3.35200063,126.87,126.85,0.05914189]
[1764632804765,7.70707082,126.86,126.85,0.05914189]
[1764632805359,7.70707082,126.86,126.81,7.0968]
[1764632805360,3.3,126.85,126.81,10.4368]
[1764632805559,3.3,126.85,126.81,7.0968]
[1764632805762,3.3,126.85,126.79,10.438]
[1764632806262,3.35769858,126.83,126.81,0.0571065]
[1764632809053,3.35769858,126.83,126.81,3.3971065]
[1764632810358,0.05769858,126.83,126.81,3.3971065]
[1764632810553,3.35769858,126.83,126.81,3.3971065]
[1764632811551,0.05769858,126.83,126.81,10.4939065]
[1764632811752,0.05769858,126.83,126.82,3.34]
[1764632812359,3.3,126.88,126.82,10.4364]
[1764632812564,3.3,126.88,126.83,3.34]
[1764632813469,3.35345368,126.87,126.84,3.39467767]
[1764632820370,3.3,126.85,126.84,0.05467767]
[1764632821976,3.3,126.85,126.81,10.4368]
[1764632822476,3.3,126.85,126.79,10.438]
[1764632822676,3.3,126.84,126.8,3.34]
[1764632823172,0.05823263,126.83,126.81,3.39162497]
[1764632823563,3.35823263,126.83,126.81,3.39162497]
[1764632825474,3.35823263,126.83,126.81,0.05162497]
[1764632825680,3.3,126.82,126.81,0.05162497]
[1764632828077,3.3,126.82,126.78,7.0983]
[1764632828078,3.3,126.81,126.78,7.0983]
[1764632829080,3.3,126.81,126.78,10.49934083]
[1764632830182,3.3,126.81,126.78,0.05104083]
[1764632830384,3.17,126.79,126.78,0.05104083]
[1764632831482,3.17,126.79,126.72,179.93359528]
[1764632831483,3.17,126.79,126.74,3.35]
[1764632832381,3.17,126.77,126.75,0.05356274]
[1764632832876,0.05695308,126.78,126.76,3.35]
[1764632833088,3.22695308,126.78,126.76,3.35]
[1764632833579,3.22695308,126.78,126.75,10.50376274]
[1764632835483,3.22695308,126.78,126.75,0.05356274]
[1764632835675,3.22695308,126.78,126.75,3.40356274]
[1764632836883,3.22695308,126.78,126.76,3.35]
[1764632837085,3.22695308,126.78,126.75,10.50386274]
[1764632837787,3.22695308,126.78,126.75,3.40356274]
[1764632842283,0.05695308,126.78,126.76,3.35]
[1764632843488,0.05695308,126.78,126.72,3.35]
[1764632843489,3.22695308,126.78,126.72,3.35]
[1764632843690,2.09979528,126.73,126.69,3.35]
[1764632843994,3.17,126.71,126.68,7.104]
[1764632844294,7.53904306,126.7,126.68,10.454]
[1764632844492,3.17,126.7,126.68,10.454]
[1764632844793,3.17,126.7,126.68,10.5063385]
[1764632844794,3.22337599,126.7,126.68,10.5063385]
[1764632844985,3.22337599,126.7,126.68,3.4023385]
[1764632845180,3.22337599,126.7,126.68,0.0523385]
[1764632846599,0.05337599,126.7,126.68,3.4023385]
[1764632847498,3.22337599,126.7,126.68,3.4023385]
[1764632849596,3.22337599,126.7,126.68,0.0523385]
[1764632849793,5.32317127,126.7,126.68,0.0523385]
[1764632849989,3.17,126.68,126.66,7.105]
[1764632850301,5.32317127,126.7,126.64,3.35]
[1764632850484,5.26979528,126.7,126.64,3.35]
[1764632850687,3.17,126.69,126.66,3.35]
[1764632850890,3.22638313,126.69,126.66,3.38800528]
[1764632853095,0.05638313,126.69,126.67,3.35]
[1764632853499,0.05638313,126.69,126.67,10.4547]
[1764632853691,0.05638313,126.69,126.68,3.35]
[1764632857002,0.05638313,126.69,126.67,10.4547]
[1764632857393,0.05638313,126.69,126.68,3.35]
[1764632858804,0.05638313,126.69,126.66,0.03800528]
[1764632859008,3.19638313,126.69,126.67,3.15]
[1764632859199,0.05638313,126.69,126.67,3.15]
[1764632862000,3.19638313,126.69,126.67,3.15]
[1764632862400,0.05638313,126.69,126.67,3.15]
[1764632862696,3.19638313,126.69,126.67,3.15]
[1764632864404,3.19638313,126.69,126.66,3.18800528]
[1764632865805,5.29617841,126.69,126.66,0.03800528]
[1764632866012,3.14,126.68,126.66,0.03800528]
[1764632867207,2.09979528,126.67,126.66,0.03800528]
[1764632867414,5.23979528,126.67,126.66,0.03800528]
[1764632868012,3.14,126.66,126.63,3.15]
[1764632869017,3.19880133,126.66,126.63,3.15]
[1764632869218,3.14,126.64,126.62,7.1071]
[1764632869921,3.14,126.64,126.62,10.2571]
[1764632870215,3.14,126.64,126.62,3.15]
[1764632872720,3.19880133,126.66,126.62,3.15]
[1764632872914,3.19880133,126.66,126.64,3.15]
[1764632873416,3.19880133,126.66,126.61,3.15]
[1764632873615,3.14,126.64,126.61,3.15]
[1764632876713,3.14,126.64,126.58,3.15]
[1764632877013,3.1981131,126.62,126.59,3.15]
[1764632877414,3.1981131,126.62,126.56,3.15]
[1764632877721,3.14,126.61,126.56,3.15]
[1764632878324,3.14,126.61,126.57,3.15]
[1764632879415,0.0581131,126.62,126.57,3.15]
[1764632879416,3.1981131,126.62,126.58,3.15]
[1764632880512,3.1981131,126.62,126.59,3.15]
[1764632883426,0.0581131,126.62,126.6,3.15]
[1764632884029,0.0581131,126.62,126.6,10.2583]
[1764632884329,0.0581131,126.62,126.61,3.15]
[1764632885023,13.53723287,126.67,126.63,3.15]
[1764632885024,3.14,126.67,126.63,3.15]
[1764632885423,5.95512546,126.69,126.65,3.15]
[1764632885633,3.14,126.72,126.65,3.15]
[1764632885820,7.51005004,126.71,126.65,3.15]